Cogmind - Beta 17.1 @@@ ROGUE MODE // 2026.09.14 @ 19:15:34 Player: puppuppit Result: Self-destructed Performance ------------- Evolutions (2) 1000 Regions Visited (5) 1000 Robots Destroyed (135) 675 Value Destroyed (3408) 3408 Prototype IDs (6) 120 Alien Tech Used (0) 0 Bonus (433) 433 TOTAL SCORE: 6636 Bonus ------- High Alert Combat Kills 433 Cogmind --------- Core Integrity 324/550 Matter 109/300 Energy 94/100 System Corruption 3% Temperature Cool (0) Movement Treading (240) Ox1 Location -8/Materials Parts ------- > --- POWER (1) -------- (None) > --- PROPULSION (2) --- Light Treads Improved Treads > --- UTILITY (4) ------ High-capacity Storage Unit Targeting Computer Core Analyzer Core Analyzer > --- WEAPON (4) ------- Minigun Minigun Minigun Minigun > --- INVENTORY (20) --- Cooled Ion Engine Advanced Treads Advanced Treads Improved Heat Sink High-capacity Matter Pod (200) High-capacity Matter Pod (200) High-capacity Matter Pod (200) Compact Matter Pod (150) Trap Scanner Weapon Shielding Minigun Minigun Gauss Rifle Advanced EMP Blaster Improved Grenade Launcher Missile Launcher Plasma Cutter Peak State ------------ > --- POWER ------------ Cooled Ion Engine > --- PROPULSION ------- Light Treads Improved Treads > --- UTILITY ---------- High-capacity Storage Unit Targeting Computer Core Analyzer Core Analyzer > --- WEAPON ----------- Minigun Minigun Advanced EMP Blaster Missile Launcher > --- INVENTORY -------- Cooled Ion Engine Light Treads Advanced Treads Advanced Treads Improved Heat Sink High-capacity Matter Pod High-capacity Matter Pod High-capacity Matter Pod Compact Matter Pod Trap Scanner Weapon Shielding Minigun Minigun Minigun Minigun Minigun Minigun Gauss Rifle Improved Grenade Launcher Plasma Cutter [Rating: 34] Favorites ----------- Power Light Angular Momentum Engine Engine Light Angular Momentum Engine Propulsion Light Treads Treads Light Treads Utility High-capacity Storage Unit Device Improved Terrain Scanner Storage High-capacity Storage Unit Processor Targeting Computer Hackware Hacking Suite Protection Hardened Light Armor Plating Weapon Improved Light Cannon Energy Gun Medium Laser Ballistic Gun Minigun Ballistic Cannon Improved Light Cannon Launcher Grenade Launcher Build | -11 -10 -10 -10 -9 -8 ------- Run | Yrd Mat Min Exi Min Mat Slots Evolved 4 | . . . . . 4 Power . | . . . . . . Propulsion . | . . . . . . Utility 2 | . . . . . 2 Weapon 2 | . . . . . 2 Parts Attached 50 | 8 9 2 . 1 30 Power 3 | 1 . 1 . . 1 Engine 3 | 1 . 1 . . 1 Core . | . . . . . . Reactor . | . . . . . . Propulsion 10 | 2 1 . . 1 6 Treads 10 | 2 1 . . 1 6 Leg . | . . . . . . Wheel . | . . . . . . Hover . | . . . . . . Flight . | . . . . . . Utility 12 | 2 3 1 . . 6 Device 2 | 1 . . . . 1 Storage 3 | 1 2 . . . . Processor 3 | . . 1 . . 2 Hackware 2 | . . . . . 2 Protection 2 | . 1 . . . 1 Artifact . | . . . . . . Weapon 25 | 3 5 . . . 17 Energy Gun 1 | 1 . . . . . Energy Cannon . | . . . . . . Ballistic Gun 15 | 2 1 . . . 12 Ballistic Cannon 5 | . 3 . . . 2 Launcher 4 | . 1 . . . 3 Special Weapon . | . . . . . . Impact Weapon . | . . . . . . Slashing Weapon . | . . . . . . Piercing Weapon . | . . . . . . Special Melee Weapon . | . . . . . . Unidentified Prototypes 1 | . . . . . 1 Parts Lost 9 | . . . . . 9 Power 1 | . . . . . 1 Propulsion 1 | . . . . . 1 Utility 1 | . . . . . 1 Weapon 6 | . . . . . 6 Highest Loss Streak 3 | . . . . . 3 To Critical Strikes . | . . . . . . Average Backups 17 | 1 13 19 20 20 19 Power . | . . . 1 1 1 Propulsion 2 | . . 2 2 2 3 Utility 6 | . 5 7 8 8 7 Weapon 7 | . 7 10 8 8 6 Tool/Special . | . . . . . . Unused Backups 37 | . 5 8 2 1 21 Power 3 | . . . . 1 2 Propulsion 3 | . . . . . 3 Utility 19 | . 4 6 . . 9 Weapon 11 | . 1 2 2 . 6 Tool/Special 1 | . . . . . 1 Average Slot Usage (%) 98 | . 100 99 100 100 96 Engine 11 | . 14 14 14 14 8 Treads 24 | . 28 28 28 28 18 Device 3 | . 2 . . . 8 Storage 12 | . 14 14 14 14 9 Processor 9 | . . 10 14 14 10 Protection 4 | . 11 2 . . 5 Ballistic Gun 12 | . 10 . . . 27 Ballistic Cannon 17 | . 17 27 28 28 5 Peak Build Rating 34 | 9 12 17 17 17 34 Average Rating 19 | 6 10 16 17 16 28 On Entrance 12 | . 9 12 17 17 17 Avg Prop Armor Cover (%) . | . . . . . . Naked Turns . | . . . . . . Heaviest Build 71 | 12 56 62 57 57 71 Greatest Support 44 | 40 40 40 40 40 44 Greatest Overweight (x) 1 | . 1 1 1 1 1 Average Overweight (x) . | . . 1 1 1 1 Largest Inventory Capacity 20 | 8 20 20 20 20 20 Average Capacity 18 | 7 15 20 20 20 20 Most Carried 20 | 3 20 20 20 20 20 Average Carried 17 | 1 13 19 19 20 19 Final Capacity 20 | 8 20 20 20 20 20 Final Carried 20 | 3 20 20 20 20 17 Class Distribution -------------------- 63% | Mutant 36% | Gunner Dominant Class ---------------- Mutant | -10/Materials Mutant | -10/Mines Mutant | -10/Exiles Mutant | -9/Mines Gunner | -8/Materials Resources | -11 -10 -10 -10 -9 -8 ----------- Run | Yrd Mat Min Exi Min Mat Matter Collected 4018 | 455 612 839 . 194 1918 Remotely . | . . . . . . Salvage Created 4165 | 263 865 314 . 367 2356 Parts 271 | 19 57 19 . 31 145 Haulers Intercepted 4 | . 2 . . . 2 Recyclers Shooed 1 | . 1 . . . . Parts Field Recycled . | . . . . . . Retrieved Matter . | . . . . . . Parts Self-Destructed . | . . . . . . Prevented . | . . . . . . Parts Restored . | . . . . . . Kills | -11 -10 -10 -10 -9 -8 ------- Run | Yrd Mat Min Exi Min Mat Combat Hostiles Destroyed 89 | . 20 7 . 8 54 Guns 27 | . 10 . . . 17 Cannons 26 | . 7 4 . 2 13 AOE 36 | . 3 3 . 6 24 Classes Destroyed 16 | 3 5 1 . 1 6 Worker 9 | 2 2 . . 1 4 Builder 5 | . 2 . . 1 2 Tunneler 7 | 5 . . . 2 . Hauler 4 | . 2 . . . 2 Recycler 12 | 1 2 3 . 3 3 Mechanic 1 | . . . . . 1 Operator 1 | . . . . . 1 Watcher 7 | . 3 . . . 4 Swarmer 26 | . 6 3 . 6 11 Grunt 44 | . 14 3 . 1 26 Brawler 2 | . . . . 1 1 Protector 2 | . . . . . 2 Sentry 10 | . . 1 . . 9 Specialist 2 | . . . . . 2 Hunter 2 | . . . . . 2 Heavy 1 | . . . . . 1 Best Kill Streak 17 | 4 8 3 . 4 17 Combat Bots Only 13 | . 4 3 . 3 13 Max Kills in Single Turn 5 | 1 2 2 . 3 5 Gunslinging . | . . . . . . Exploded 5 | . 2 2 . 3 5 Melee . | . . . . . . Uniques/NPCs Destroyed . | . . . . . . Combat | -11 -10 -10 -10 -9 -8 -------- Run | Yrd Mat Min Exi Min Mat Hostile Shots Fired 276 | . 46 30 . 9 191 Missed 89 | . 14 8 . 5 62 Hits 187 | . 32 22 . 4 129 Projectile 187 | . 32 22 . 4 129 Critical Strikes 4 | . . 1 . . 3 Damage Taken 2716 | . 350 221 . 31 2114 Core 283 | . 36 21 . . 226 Absorbed by Shields . | . . . . . . Regen/Repaired (Parts) 178 | . . . . . 178 Core Remaining (%) 88 | 100 . . . 77 . Volleys Fired 232 | 33 74 18 . 17 90 Largest 4 | 2 2 2 . 2 4 Hottest 136 | 40 66 66 . 66 136 Shots Fired 608 | 66 145 32 . 30 335 Gun 366 | 66 84 . . . 216 Cannon 212 | . 58 28 . 26 100 Launcher 30 | . 3 4 . 4 19 Special . | . . . . . . Kinetic 578 | 66 142 28 . 26 316 Thermal . | . . . . . . Explosive 22 | . 3 4 . 4 11 Electromagnetic 8 | . . . . . 8 Robot Hit Streak 12 | 7 10 10 . 5 12 Robot Miss Streak 4 | 2 4 2 . 2 4 Penetration Max . | . . . . . . Secondary Targets 3 | . 1 . . . 2 Max Gunslinging Chain 1 | . 1 . . . 1 Shots Hit Robots 347 | 43 87 18 . 14 185 Core Hits 208 | 14 42 10 . 16 126 Critical Kills 2 | 1 1 . . . . Critical Parts Destroyed 1 | . . . . . 1 Critical Strikes 9 | 1 3 1 . . 4 Destroy 3 | 1 1 . . . 1 Blast 6 | . 2 1 . . 3 Melee Attacks . | . . . . . . Impact . | . . . . . . Slashing . | . . . . . . Piercing . | . . . . . . Sneak Attacks . | . . . . . . Combat Hostiles . | . . . . . . Follow-up Attacks . | . . . . . . Damage Inflicted 8926 | 415 1508 633 . 652 5718 Guns 2954 | 415 581 . . . 1958 Cannons 2583 | . 697 402 . 297 1187 Explosions 3386 | . 230 231 . 355 2570 Melee . | . . . . . . Ramming 3 | . . . . . 3 Kinetic 5537 | 415 1278 402 . 297 3145 Thermal 132 | . . . . 31 101 Explosive 2404 | . 230 231 . 324 1619 Electromagnetic 850 | . . . . . 850 Impact . | . . . . . . Slashing . | . . . . . . Piercing . | . . . . . . Highest Corruption 3 | . . . . . 3 Average Corruption 2 | . . . . . 2 Corruption Purged . | . . . . . . Corruption Blocked . | . . . . . . Effects 53 | . . . . . 53 Message Errors 17 | . . . . . 17 Matter Fused 12 | . . . . . 12 Heat Flow Errors 3 | . . . . . 3 Energy Discharges 7 | . . . . . 7 Data Loss (minor) 6 | . . . . . 6 Data Loss (major) 1 | . . . . . 1 Misfires 2 | . . . . . 2 Alerts 4 | . . . . . 4 Weapon Failures 1 | . . . . . 1 Overload Shots . | . . . . . . Overflow Damage 149 | . 5 28 . 32 84 Projectiles 74 | . 5 . . 19 50 Explosions 75 | . . 28 . 13 34 Melee . | . . . . . . Knockbacks 29 | . 9 9 . 3 8 Impact . | . . . . . . Kinetic 28 | . 8 9 . 3 8 Secondary 1 | . 1 . . . . Self-Inflicted Damage 68 | . . 2 . . 66 Shots 4 | . . 1 . . 3 Rammed 1 | . . . . . 1 Targets Rammed 1 | . . . . . 1 Kicked . | . . . . . . Crushed . | . . . . . . Highest Temperature 320 | . 66 102 . 26 320 Average Temperature 47 | . 17 35 . 9 61 Received Heat Transfer 924 | . 153 78 . . 693 Effects 1 | . . . . . 1 Energy Bleed 1 | . . . . . 1 Siege Activations . | . . . . . . Martial Activations . | . . . . . . Shielding Activations . | . . . . . . Robots Disrupted . | . . . . . . Combat Hostiles . | . . . . . . Robots Corrupted . | . . . . . . Combat Hostiles . | . . . . . . Parts Fried 2 | . . . . . 2 Impact Corruptions . | . . . . . . Robots Melted . | . . . . . . Combat Hostiles . | . . . . . . Parts Melted . | . . . . . . Heat Transferred 150 | . . . . 50 100 Parts Sabotaged . | . . . . . . Parts Stolen . | . . . . . . Parts Stripped . | . . . . . . Power Chain Reactions 4 | . . . . . 4 Alert | -11 -10 -10 -10 -9 -8 ------- Run | Yrd Mat Min Exi Min Mat Maximum Alert Level 3 | . 1 . . . 3 Low Security (%) 59 | 100 67 100 . 100 15 Level 1 21 | . 32 . . . 37 Level 2 15 | . . . . . 39 Level 3 2 | . . . . . 7 Level 4 . | . . . . . . Level 5 . | . . . . . . High Security . | . . . . . . Max Security . | . . . . . . Sterilizations 1 | . . . . . 1 Peak Influence 933 | 10 259 99 . 119 933 Initial 84 | . . 84 . . . Average 198 | . 157 24 . 28 398 Influence Increases 2902 | 40 671 208 . 309 1674 Destroy 0b10 Robot/C 1740 | . 400 140 . 160 1040 Destroy 0b10 Robot/NC 240 | 40 55 15 . 35 95 Destroy Leader 402 | . 90 30 . 30 252 Allied During Kill 4 | . . . . 4 . Successful Hack 47 | . 15 . . . 32 Select Force Hacks 120 | . 60 . . . 60 Disable Machine 120 | . . . . 45 75 Destroy Structure 154 | . 21 23 . 35 75 Lose Combat Pursuer 75 | . 30 . . . 45 Influence Decreases 1971 | 40 455 424 . 309 743 Entered New Map 132 | . . 132 . . . Time Decay 1749 | 40 455 292 . 309 653 Lost Part 90 | . . . . . 90 Squads Dispatched 17 | . 5 2 . 1 9 Investigation 9 | . 4 2 . . 3 Extermination . | . . . . . . Reinforcement 6 | . 1 . . 1 4 Assault 2 | . . . . . 2 Garrison . | . . . . . . Intercept . | . . . . . . Searches Triggered . | . . . . . . Construction Impeded 3 | . . . . 1 2 Haulers Reinforced . | . . . . . . Active Scanning Responses . | . . . . . . Cargo Convoy Interrupts . | . . . . . . Stealth | -11 -10 -10 -10 -9 -8 --------- Run | Yrd Mat Min Exi Min Mat Distress Signals 7 | . 4 . . . 3 Communications Jammed . | . . . . . . Distress Signals . | . . . . . . Times Spotted 123 | . 32 7 . 8 76 Peak Tracking Total 10 | . 6 3 . 3 10 Tactical Retreats 4 | . 1 . . . 3 Traps | -11 -10 -10 -10 -9 -8 ------- Run | Yrd Mat Min Exi Min Mat Traps Triggered 3 | . 1 . . . 2 Indirectly . | . . . . . . Trap Hack Attempts . | . . . . . . Triggered . | . . . . . . Disarmed . | . . . . . . Reprogrammed . | . . . . . . Reused . | . . . . . . Traps Extracted . | . . . . . . Installed . | . . . . . . Triggered . | . . . . . . Machines | -11 -10 -10 -10 -9 -8 ---------- Run | Yrd Mat Min Exi Min Mat Machines Disabled 9 | . . 1 . 3 5 Max in Single Turn 2 | . . 1 . 1 2 Machines Repaired . | . . . . . . Machines Dismantled . | . . . . . . Machines Sabotaged . | . . . . . . Overloaded Fab Kills . | . . . . . . Hacking | -11 -10 -10 -10 -9 -8 --------- Run | Yrd Mat Min Exi Min Mat Machines Accessed 23 | . 8 2 1 . 12 Terminals 13 | . 5 1 . . 7 Fabricators . | . . . . . . Repair Stations 3 | . 1 . . . 2 Recycling Units 3 | . 2 . . . 1 Scanalyzers 2 | . . . . . 2 Garrison Access . | . . . . . . Total Hacks 63 | . 17 4 1 . 41 Successful 39 | . 9 2 1 . 27 Failed 22 | . 7 2 . . 13 Catastrophic 4 | . 1 . . . 3 Database Lockouts 2 | . 1 . . . 1 Manual 39 | . 14 3 . . 22 Terminals 37 | . 13 3 . . 21 Fabricators . | . . . . . . Repair Stations 12 | . 2 . . . 10 Recycling Units 3 | . 2 . . . 1 Scanalyzers 9 | . . . . . 9 Garrison Access . | . . . . . . Terminal Hacks 9 | . 3 2 1 . 3 Record 1 | . . . 1 . . Robot Analysis 5 | . 3 1 . . 1 Prototype ID Bank 2 | . . . . . 2 Open Door 1 | . . 1 . . . Fabricator Hacks . | . . . . . . Repair Station Hacks 8 | . 1 . . . 7 Scan Component 5 | . 1 . . . 4 Repair 3 | . . . . . 3 Recycling Unit Hacks . | . . . . . . Scanalyzer 5 | . . . . . 5 Insert Component 2 | . . . . . 2 Analyze 2 | . . . . . 2 Retrieve Study 1 | . . . . . 1 Garrison Access Hacks . | . . . . . . Unauthorized Hacks 17 | . 5 . . . 12 Terminals 12 | . 3 . . . 9 Botnet 3 | . 1 . . . 2 Disrupt 1 | . . . . . 1 Skim 8 | . 2 . . . 6 Fabricators . | . . . . . . Repair Stations . | . . . . . . Recycling Units 3 | . 2 . . . 1 Reject 1 | . . . . . 1 Tunnel 2 | . 2 . . . . Scanalyzers 2 | . . . . . 2 Extract 2 | . . . . . 2 Garrison Access . | . . . . . . Data Cores Recovered . | . . . . . . Used . | . . . . . . Hacking Detections 17 | . 6 1 . . 10 Full Trace Events 3 | . 1 1 . . 1 Feedback Events . | . . . . . . Feedback Blocked . | . . . . . . Robot Schematics Acquired . | . . . . . . Robots Built . | . . . . . . Authchips . | . . . . . . Time . | . . . . . . Total Robot Build Rating . | . . . . . . Part Schematics Acquired 7 | . . . . . 7 Parts Built . | . . . . . . Authchips . | . . . . . . Time . | . . . . . . Total Part Build Rating . | . . . . . . Part Studies Acquired 1 | . . . . . 1 Parts Repaired 3 | . . . . . 3 Time 96 | . . . . . 96 Parts Recycled . | . . . . . . Recycled Matter . | . . . . . . Retrieved Matter . | . . . . . . Retrieved Components . | . . . . . . Parts Scanalyzed 2 | . . . . . 2 Part Schematics Acquired 1 | . . . . . 1 Parts Damaged . | . . . . . . Bothacking | -11 -10 -10 -10 -9 -8 ------------ Run | Yrd Mat Min Exi Min Mat Used RIF Installer . | . . . . . . Robots Hacked . | . . . . . . Non-combat . | . . . . . . Combat . | . . . . . . Robot Hacks Applied . | . . . . . . Relay Couplers Released . | . . . . . . Fabnet Peak Effective % . | . . . . . . Robots Rewired . | . . . . . . Allies Hacked . | . . . . . . Hacks Repelled . | . . . . . . Allies | -11 -10 -10 -10 -9 -8 -------- Run | Yrd Mat Min Exi Min Mat Total Allies 1 | . . . . 1 . Largest Group 1 | . . . . 1 . Highest-Rated Group 31 | . . . . 31 . Highest-Rated Ally 31 | . . . . 31 . Total Orders . | . . . . . . Ally Attacks . | . . . . . . Total Damage . | . . . . . . Kills . | . . . . . . Allies Corrupted . | . . . . . . Allies Melted . | . . . . . . Intel | -11 -10 -10 -10 -9 -8 ------- Run | Yrd Mat Min Exi Min Mat Active Infowar (turns) 3189 | 112 295 . . . 2782 Terrain 3189 | 112 295 . . . 2782 Robot Analysis Total 5 | . 3 1 . . 1 Derelict Logs Recovered 3 | . . 2 . 1 . Drone Launches . | . . . . . . Drone Recoveries . | . . . . . . Exploration | -11 -10 -10 -10 -9 -8 ------------- Run | Yrd Mat Min Exi Min Mat Turns Passed 8525 | 262 1682 1564 582 1324 3111 Spaces Moved 3314 | 100 699 619 242 529 1125 Core 3 | 3 . . . . . Treads 3311 | 97 699 619 242 529 1125 Legs . | . . . . . . Wheels . | . . . . . . Hover . | . . . . . . Flight . | . . . . . . Fastest Speed 50 | 50 160 240 240 240 225 Average Speed 226 | 156 200 240 240 240 233 Slowest Speed 240 | 160 240 240 240 240 240 Overloaded Moves . | . . . . . . Propulsion Burnouts . | . . . . . . Robots Hopped . | . . . . . . Potential Cave-ins . | . . . . . . Cave-ins Triggered . | . . . . . . Exploration Rate (%) 72 | 5 92 99 58 98 83 Regions Visited 5 Branch Regions 3 Pre-discovered Areas 7 | . 2 . 1 . 4 Known Exits Taken . | . . . . . . Unknown Exits Taken 5 | 1 1 1 1 1 . Scrap Searched 2 | . . 1 . 1 . Spaces Dug . | . . . . . . Terrain Destroyed 162 | . 17 32 . 38 75 Melee . | . . . . . . Projectile 12 | . 5 1 . 1 5 AOE 150 | . 12 31 . 37 70 Terrain Rammed . | . . . . . . Walls Destroyed . | . . . . . . Machines Disabled . | . . . . . . Actions | -11 -10 -10 -10 -9 -8 --------- Run | Yrd Mat Min Exi Min Mat Total 3889 | 143 846 677 245 553 1425 Wait 155 | . 28 14 . . 113 Move 3309 | 99 698 618 241 528 1125 Hop . | . . . . . . Pick Up 61 | 2 23 10 2 1 23 Fast Attach 19 | 8 2 1 . . 8 Attach 11 | . . . . . 11 Detach 5 | 1 2 1 . . 1 Swap 43 | . 8 3 . 5 27 Drop 53 | . 11 12 2 2 26 Fire 232 | 33 74 18 . 17 90 Melee . | . . . . . . Ram . | . . . . . . Kick . | . . . . . . Crush 1 | . . . . . 1 Escape Stasis . | . . . . . . Rewire . | . . . . . . Trap . | . . . . . . Miscellaneous . | . . . . . . Route ------- -11/Scrapyard -10/Materials (discovered 5 exits: [*Mat x2] / *Min x2 / [*Sub]) -10/Mines (discovered 3 exits: [*Mat x2] / *Exi) -10/Exiles -9/Mines (discovered 2 exits: *Mat x2) -8/Materials (discovered 4 exits: *Fac x3 / *Sto) History --------- Turn | Location | Event 9 | -11/Scrapyard | Discovered new exit (range 16) 263 | -11/Scrapyard | Entered Materials 302 | -10/Materials | Build established: Mutant 608 | -10/Materials | Central database locked down 887 | -10/Materials | Discovered new exit (range 6) 1026 | -10/Materials | Discovered new exit (range 7) 1243 | -10/Materials | Discovered new exit (range 13) 1652 | -10/Materials | Discovered new exit (range 15) 1823 | -10/Materials | Discovered new exit (range 6) 1945 | -10/Materials | Entered Mines 1949 | -10/Mines | Met a Derelict shopkeep closing up shop 1964 | -10/Mines | Met a Derelict bent on vengeance 2155 | -10/Mines | Learned location of 1 exit from Materials 2253 | -10/Mines | Joined a pair of Derelicts in attacking an 0b10 outpost 2323 | -10/Mines | Discovered new exit (range 3) 2559 | -10/Mines | Discovered new exit (range 11) 2848 | -10/Mines | Found a Scrap Suit stashed away for nefarious purposes 3013 | -10/Mines | Found a damaged Exp. Sensor Array with a note attached 3019 | -10/Mines | Found Prototype Device 3041 | -10/Mines | Learned Materials stockpile data 3499 | -10/Mines | Deemed a non-threat by the Exiles lab entrance 3499 | -10/Mines | Discovered new exit (range 5) 3509 | -10/Mines | Entered Exiles 3601 | -10/Exiles | Met 8R-AWN 3635 | -10/Exiles | Met EX-HEX 3740 | -10/Exiles | Met EX-DEC 3786 | -10/Exiles | Learned location of Zion (-6) 3937 | -10/Exiles | Met EX-BIN 4064 | -10/Exiles | Discovered new exit (range 14) 4091 | -10/Exiles | Entered Mines 4325 | -9/Mines | Discovered new exit (range 10) 4549 | -9/Mines | Received a Mining Laser from a helpful Derelict 4738 | -9/Mines | Discovered new exit (range 8) 5415 | -9/Mines | Entered Materials 5415 | -8/Materials | Evolved 4 slots: Utility x2, Weapon x2 5416 | -8/Materials | Identified exit to Storage 5417 | -8/Materials | Identified exit to Factory 5722 | -8/Materials | Build established: Gunner 5945 | -8/Materials | Central database locked down 6057 | -8/Materials | Lost 3 parts (3w) 6388 | -8/Materials | Identified Exp. Sensor Array 6411 | -8/Materials | Learned location of 1 exit from Extension 6425 | -8/Materials | Learned 4 Factory zone layouts 6431 | -8/Materials | Learned location of Recycling (-8) 6432 | -8/Materials | Learned 4 Lower Caves zone layouts 6439 | -8/Materials | Learned location of Lower Caves (-7) 6457 | -8/Materials | Learned location of 3 exits from Factory 6461 | -8/Materials | Discovered exit to Factory (range 16) 6484 | -8/Materials | Learned location of Lower Caves (-7) 7048 | -8/Materials | Repaired Gauss Rifle 7076 | -8/Materials | Repaired Assault Rifle 7103 | -8/Materials | Repaired Assault Rifle 8215 | -8/Materials | First assault squad dispatched 8322 | -8/Materials | Destroyed 13 combat bots 8347 | -8/Materials | Sterilization system engaged 8347 | -8/Materials | Non-combat units ordered to evacuate 8405 | -8/Materials | Discovered exit to Factory (range 9) 8447 | -8/Materials | Combat units ordered to evacuate 8526 | -8/Materials | Self-destructed Last Messages --------------- 08413_ Minigun destroyed. 08415_ Acquired 3 matter. 08415_ R-06 Scavenger exits level. 08417_ Acquired 8 matter. 08419_ Penetrated by Slug. 08420_ O-16 Technician: "IFF HANDSHAKE FAILED. SECURING TERMINAL." 08421_ O-16 Technician locks terminal. 08432_ H-61 Shepherd destroyed. 08436_ System corrupted: FCS attempts to trigger Minigun. 08436_ System corrupted: Minigun misfires. 08447_ ALERT: All combat units evacuate. 08452_ ALERT: Machine network offline. 08454_ Acquired 67 matter. 08457_ ALERT: Performing unscheduled system reset. 08478_ G-47 Trooper suffers critical hit (Destroy). 08478_ Destroyed Aluminum Leg. 08478_ G-47 Trooper destroyed. 08520_ System corrupted: Energy discharge (-28). Map ----- +----------------------------------------------------+ | ??????????????????????????????????????????? | | ??????????????????????????????????????????? | | ??????????????????????????????????????????? | | ??????????????????????????????????????????? | | ??????????????????????????????????????????? | | ??????????????????????????????????????????? | | ????????????????*?????????????????????????? | | ??????????????????????????????????????????? | | ??????????????????????????????????????????? | | ??????????????????????????????????????????? | | ??????????????????????????????????????????# | | ??????????????????????????????????????????# | | ??????????????????????????????????????????# | | ??????????+ ??????????????????????????????# | | ??????????# ?????????????????????????????# | | ??????????# #????+???????????????????????# | | ?????????? #### ???????????????????????? | | ?????????? ########???????????????? | | ?????????#? ## ????????????????? | | ?????????# "" ## ????????????????? | | ?????????# "G !## ?????????????????? | | ?????????# "" ##[ ?????????????????# | | ?????##### #? "???#??????????????# | | ?????# ## "????????#?????????# | | ?????# =[ ##+#################### | | ?????# [[ @ | | ?????# | | ?????+ ! ####################### | | ?????# ##### ##????????????????????? | | ????????????# #?????????###?####?????? | | ????????????#! !#??????#######%###?##??? | | ????????????##!!!!##???#??# ##?#??? | | ????????????######?????#??# "S #??#??? | | ???????????????#????????#?# "" ]] #???#? | | ??????????????????#????##?# " ] #?????? | | ??????????????????????????# ! ##??# ? | | ??????????????????#???????# #?#?##? | | ???????????????????????#### [ ##????# | | ???????????????##????#?#??# *%= [ ###???# | | ?????????????##################+#####?#???# | | ?????????????# ! % *######## | | ?????????????# < [ = # = | | ?????????????# # | | ?????????????################### # | | ??????????????????#????#??#??# # # | | ?????????#????????#???##????#? # # * | | ???????????????????#?##??###??## /! | | ?????????????????###?#########?#= ######## | | ?????????????????????#= ## ## | | ????????????????#????# """"" # ## = " | +----------------------------------------------------+ Best States ------------- Heat Dissipation 31 Energy Generation 18 Energy Capacity 280 Matter Stores 300 Matter Capacity 300 Sight Range 16 Terrain Scan Range 16 Terrain Scan Density 10 Armor Coverage 225 Evasion (%) 40 Targeting Accuracy 5 Core Analysis 9 Recoil Reduction 2 Offensive Hacking 10 Item Schematics ----------------- Adv. Targeting Computer | -8/Materials | Extracted Huge Storage Unit | -8/Materials | Extracted ECM Suite | -8/Materials | Extracted Mining Laser | -8/Materials | Extracted Hacking Suite | -8/Materials | Extracted Exp. Sensor Array | -8/Materials | Scanalyzed Med. Armor Plating | -8/Materials | Extracted Robot Schematics ------------------ None Fabricated ------------ Nothing Repaired ---------- Gauss Rifle | 35% | -8/Materials Assault Rifle | 66% | -8/Materials Assault Rifle | 47% | -8/Materials Studied --------- Imp. Light Cannon | -8/Materials | Hacked Alien Tech Used ----------------- None Achievements -------------- None Challenges ------------ None Game ------ Seed HelicalTerrainSource Manual? 0 Play Time 00:32:01 Cumulative 800.4 hours Start 2026.09.14 @ 18:46:29 End 2026.09.14 @ 19:15:34 Sessions 1 Manual Loads 0 Difficulty Rogue Special Mode None Game No. 388 Rogue 388 Adventurer 0 Explorer 0 Win Type - Total 7 Types 3/0/2/1/0/0/0/0/0/1 Lore% 87 Gallery% 78 Achievement% 62 Wizard Run 0 Options --------- Layout 2 ASCII 0 Keyboard 1 Movement Vi Keybinds 0 Fullscreen 1 Font 16/Proggy Map View 55x47 Zoom Use 0% Tactical HUD 1 Map Filters NONE Filters NONE Steam 0 RUN: 4521dc98-3cca-443a-b443-abf785e99599